[Event "Titled Tuesday Blitz July 20 2021"]
[White "Luo, Terry"]
[Black "Lovkov, Roman"]
[WhiteFideId "30931045"]
[BlackFideId "4157389"]
[WhiteElo "2459"]
[BlackElo "2723"]
[Result "0-1"]
[Round "02"]
[TimeControl "180+1"]
[Date "2021.07.21"]
[WhiteClock "0:00:23"]
[BlackClock "0:00:21"]

1. d4 {[%clk 0:03:00]}  Nf6 {[%clk 0:03:00]} 2. c4 {[%clk 0:03:01]}  g6 {[%clk 0:03:00]} 3. Nc3 {[%clk 0:03:00]}  d5 {[%clk 0:03:00]} 4. cxd5 {[%clk 0:03:00]}  Nxd5 {[%clk 0:03:01]} 5. e4 {[%clk 0:03:01]}  Nxc3 {[%clk 0:03:01]} 6. bxc3 {[%clk 0:03:02]}  Bg7 {[%clk 0:03:02]} 7. Nf3 {[%clk 0:02:59]}  c5 {[%clk 0:03:02]} 8. Rb1 {[%clk 0:02:58]}  O-O {[%clk 0:03:00]} 9. Be2 {[%clk 0:02:58]}  b6 {[%clk 0:02:58]} 10. O-O {[%clk 0:02:58]}  Bb7 {[%clk 0:02:58]} 11. Qd3 {[%clk 0:02:57]}  e6 {[%clk 0:02:42]} 12. Bg5 {[%clk 0:02:55]}  Qc7 {[%clk 0:02:41]} 13. Qe3 {[%clk 0:02:54]}  Nd7 {[%clk 0:02:20]} 14. Bh6 {[%clk 0:02:49]}  Bxh6 {[%clk 0:01:59]} 15. Qxh6 {[%clk 0:02:48]}  Bxe4 {[%clk 0:02:00]} 16. Ng5 {[%clk 0:02:41]}  Nf6 {[%clk 0:02:00]} 17. Rbe1 {[%clk 0:02:29]}  Rfd8 {[%clk 0:01:42]} 18. Bb5 {[%clk 0:02:28]}  Bd5 {[%clk 0:01:15]} 19. c4 {[%clk 0:02:19]}  Bb7 {[%clk 0:01:10]} 20. dxc5 {[%clk 0:02:19]}  Qxc5 {[%clk 0:01:08]} 21. Re3 {[%clk 0:02:12]}  Qf8 {[%clk 0:01:07]} 22. Qh4 {[%clk 0:02:10]}  Qg7 {[%clk 0:01:05]} 23. Rfe1 {[%clk 0:01:51]}  h6 {[%clk 0:00:54]} 24. Nxe6 {[%clk 0:01:37]}  fxe6 {[%clk 0:00:55]} 25. Rxe6 {[%clk 0:01:37]}  Rf8 {[%clk 0:00:55]} 26. c5 {[%clk 0:01:36]}  Bd5 {[%clk 0:00:54]} 27. Re7 {[%clk 0:01:28]}  Rf7 {[%clk 0:00:55]} 28. Rxf7 {[%clk 0:01:26]}  Bxf7 {[%clk 0:00:53]} 29. c6 {[%clk 0:01:22]}  a6 {[%clk 0:00:39]} 30. Ba4 {[%clk 0:01:06]}  b5 {[%clk 0:00:37]} 31. Bd1 {[%clk 0:01:04]}  Rc8 {[%clk 0:00:36]} 32. Bf3 {[%clk 0:01:03]}  Bd5 {[%clk 0:00:32]} 33. Qh3 {[%clk 0:00:52]}  Rxc6 {[%clk 0:00:27]} 34. Bxd5+ {[%clk 0:00:42]}  Nxd5 {[%clk 0:00:28]} 35. Qd3 {[%clk 0:00:41]}  Qf7 {[%clk 0:00:21]} 36. g3 {[%clk 0:00:30]}  Re6 {[%clk 0:00:20]} 37. Rc1 {[%clk 0:00:28]}  Nf6 {[%clk 0:00:20]} 38. Qd8+ {[%clk 0:00:27]}  Re8 {[%clk 0:00:20]} 39. Qd6 {[%clk 0:00:26]}  Re7 {[%clk 0:00:19]} 40. Rc6 {[%clk 0:00:26]}  Kg7 {[%clk 0:00:20]} 41. Rxa6 {[%clk 0:00:25]}  Re1+ {[%clk 0:00:19]} 42. Kg2 {[%clk 0:00:26]}  Qd5+ {[%clk 0:00:19]} 43. Qxd5 {[%clk 0:00:26]}  Nxd5 {[%clk 0:00:20]} 44. Ra5 {[%clk 0:00:27]}  Nc3 {[%clk 0:00:20]} 45. Ra3 {[%clk 0:00:27]}  b4 {[%clk 0:00:19]} 46. Rb3 {[%clk 0:00:27]}  Rb1 {[%clk 0:00:20]} 47. Rxb1 {[%clk 0:00:23]}  Nxb1 {[%clk 0:00:21]} 0-1


[Site "https://www.chess.com"]

[Event "Titled Tuesday Blitz July 20 2021"]
[White "Noritsyn, Nikolay"]
[Black "Kotepalli, Sai Nirupama"]
[WhiteFideId "2604922"]
[BlackFideId "5039444"]
[WhiteElo "2718"]
[BlackElo "2458"]
[Result "1-0"]
[Round "02"]
[TimeControl "180+1"]
[Date "2021.07.21"]
[WhiteClock "0:00:53"]
[BlackClock "0:00:55"]

1. b3 {[%clk 0:03:00]}  Nc6 {[%clk 0:02:56]} 2. Bb2 {[%clk 0:03:01]}  Nf6 {[%clk 0:02:54]} 3. e3 {[%clk 0:03:01]}  d5 {[%clk 0:02:51]} 4. Nf3 {[%clk 0:03:01]}  Bf5 {[%clk 0:02:50]} 5. Bb5 {[%clk 0:03:00]}  a6 {[%clk 0:02:45]} 6. Bxc6+ {[%clk 0:03:00]}  bxc6 {[%clk 0:02:46]} 7. Ne5 {[%clk 0:03:00]}  c5 {[%clk 0:02:41]} 8. d3 {[%clk 0:02:58]}  e6 {[%clk 0:02:40]} 9. g4 {[%clk 0:02:55]}  Bg6 {[%clk 0:02:39]} 10. h4 {[%clk 0:02:55]}  h5 {[%clk 0:02:32]} 11. g5 {[%clk 0:02:39]}  Nd7 {[%clk 0:02:30]} 12. Nxg6 {[%clk 0:02:35]}  fxg6 {[%clk 0:02:31]} 13. Nd2 {[%clk 0:02:35]}  e5 {[%clk 0:02:23]} 14. Qf3 {[%clk 0:02:29]}  c6 {[%clk 0:02:22]} 15. c4 {[%clk 0:02:24]}  dxc4 {[%clk 0:02:10]} 16. Nxc4 {[%clk 0:02:19]}  Qc7 {[%clk 0:02:09]} 17. Qe4 {[%clk 0:02:13]}  O-O-O {[%clk 0:02:09]} 18. Bc3 {[%clk 0:01:59]}  Qb7 {[%clk 0:01:55]} 19. Ba5 {[%clk 0:01:44]}  Re8 {[%clk 0:01:53]} 20. Qxg6 {[%clk 0:01:42]}  Be7 {[%clk 0:01:52]} 21. Ke2 {[%clk 0:01:21]}  Kb8 {[%clk 0:01:42]} 22. Rac1 {[%clk 0:01:20]}  Ref8 {[%clk 0:01:24]} 23. Rhf1 {[%clk 0:01:13]}  Qc8 {[%clk 0:01:14]} 24. Qxg7 {[%clk 0:01:08]}  Re8 {[%clk 0:01:09]} 25. Qg6 {[%clk 0:01:04]}  Ref8 {[%clk 0:01:02]} 26. Bc3 {[%clk 0:00:59]}  Qc7 {[%clk 0:00:58]} 27. Qe4 {[%clk 0:00:57]}  Bd6 {[%clk 0:00:55]} 28. Ba5 {[%clk 0:00:53]} 1-0


[Site "https://www.chess.com"]

[Event "Titled Tuesday Blitz July 20 2021"]
[White "Novikov, Evgenij"]
[Black "Wieczorek, Zbigniew"]
[WhiteFideId "4125380"]
[BlackFideId "1102001"]
[WhiteElo "2242"]
[BlackElo "2263"]
[Result "1/2-1/2"]
[Round "02"]
[TimeControl "180+1"]
[Date "2021.07.21"]
[WhiteClock "0:00:05"]
[BlackClock "0:00:19"]

1. d4 {[%clk 0:03:00]}  g6 {[%clk 0:02:59]} 2. c4 {[%clk 0:02:57]}  Bg7 {[%clk 0:02:59]} 3. Nc3 {[%clk 0:02:58]}  d6 {[%clk 0:03:00]} 4. e4 {[%clk 0:02:58]}  Nf6 {[%clk 0:03:00]} 5. Be2 {[%clk 0:02:59]}  O-O {[%clk 0:03:00]} 6. Nf3 {[%clk 0:02:59]}  e5 {[%clk 0:03:00]} 7. d5 {[%clk 0:03:00]}  Na6 {[%clk 0:03:00]} 8. O-O {[%clk 0:03:00]}  h5 {[%clk 0:02:56]} 9. Ne1 {[%clk 0:02:46]}  Qe8 {[%clk 0:02:56]} 10. Nd3 {[%clk 0:02:42]}  b6 {[%clk 0:02:55]} 11. b4 {[%clk 0:02:05]}  Nh7 {[%clk 0:02:48]} 12. c5 {[%clk 0:01:59]}  h4 {[%clk 0:01:47]} 13. c6 {[%clk 0:01:43]}  Bf6 {[%clk 0:01:43]} 14. a4 {[%clk 0:01:35]}  Bg5 {[%clk 0:01:30]} 15. a5 {[%clk 0:01:27]}  Bxc1 {[%clk 0:01:10]} 16. Qxc1 {[%clk 0:01:28]}  f5 {[%clk 0:01:05]} 17. axb6 {[%clk 0:01:20]}  cxb6 {[%clk 0:01:03]} 18. b5 {[%clk 0:01:03]}  Nc7 {[%clk 0:00:56]} 19. Bf3 {[%clk 0:00:49]}  Qe7 {[%clk 0:00:53]} 20. g3 {[%clk 0:00:26]}  Kg7 {[%clk 0:00:34]} 21. Bg2 {[%clk 0:00:23]}  hxg3 {[%clk 0:00:18]} 22. fxg3 {[%clk 0:00:23]}  Rh8 {[%clk 0:00:16]} 23. Qe3 {[%clk 0:00:19]}  Ng5 {[%clk 0:00:16]} 24. h4 {[%clk 0:00:19]}  Nf7 {[%clk 0:00:15]} 25. Ra4 {[%clk 0:00:15]}  f4 {[%clk 0:00:15]} 26. gxf4 {[%clk 0:00:13]}  Qxh4 {[%clk 0:00:14]} 27. fxe5 {[%clk 0:00:11]}  Qh2+ {[%clk 0:00:14]} 28. Kf2 {[%clk 0:00:12]}  Nxe5 {[%clk 0:00:14]} 29. Nxe5 {[%clk 0:00:12]}  Qxe5 {[%clk 0:00:14]} 30. Qd4 {[%clk 0:00:12]}  Qxd4+ {[%clk 0:00:13]} 31. Rxd4 {[%clk 0:00:13]}  Bg4 {[%clk 0:00:13]} 32. Kg3 {[%clk 0:00:12]}  Bh5 {[%clk 0:00:13]} 33. Ra4 {[%clk 0:00:11]}  Rhe8 {[%clk 0:00:11]} 34. Rfa1 {[%clk 0:00:10]}  Re7 {[%clk 0:00:06]} 35. Rxa7 {[%clk 0:00:10]}  Rxa7 {[%clk 0:00:07]} 36. Rxa7 {[%clk 0:00:11]}  Nxd5 {[%clk 0:00:08]} 37. Nxd5 {[%clk 0:00:06]}  Rxa7 {[%clk 0:00:07]} 38. c7 {[%clk 0:00:07]}  Ra8 {[%clk 0:00:07]} 39. Nxb6 {[%clk 0:00:07]}  Ra3+ {[%clk 0:00:07]} 40. Kh2 {[%clk 0:00:05]}  Rc3 {[%clk 0:00:08]} 41. c8=Q {[%clk 0:00:05]}  Rxc8 {[%clk 0:00:08]} 42. Nxc8 {[%clk 0:00:06]}  Be2 {[%clk 0:00:08]} 43. b6 {[%clk 0:00:06]}  Ba6 {[%clk 0:00:08]} 44. Nxd6 {[%clk 0:00:07]}  Kf6 {[%clk 0:00:08]} 45. b7 {[%clk 0:00:07]}  Bxb7 {[%clk 0:00:08]} 46. Nxb7 {[%clk 0:00:08]}  Ke5 {[%clk 0:00:09]} 47. Nc5 {[%clk 0:00:08]}  g5 {[%clk 0:00:09]} 48. Kg3 {[%clk 0:00:08]}  Kd4 {[%clk 0:00:09]} 49. Ne6+ {[%clk 0:00:08]}  Ke5 {[%clk 0:00:09]} 50. Nxg5 {[%clk 0:00:09]}  Kf6 {[%clk 0:00:10]} 51. Nf3 {[%clk 0:00:08]}  Ke6 {[%clk 0:00:10]} 52. e5 {[%clk 0:00:08]}  Kf5 {[%clk 0:00:10]} 53. Ng1 {[%clk 0:00:08]}  Kxe5 {[%clk 0:00:10]} 54. Kf3 {[%clk 0:00:09]}  Kd4 {[%clk 0:00:10]} 55. Ne2+ {[%clk 0:00:08]}  Ke5 {[%clk 0:00:10]} 56. Bh3 {[%clk 0:00:09]}  Kd5 {[%clk 0:00:10]} 57. Kf4 {[%clk 0:00:10]}  Kc4 {[%clk 0:00:10]} 58. Ke4 {[%clk 0:00:10]}  Kb3 {[%clk 0:00:10]} 59. Be6+ {[%clk 0:00:11]}  Kc2 {[%clk 0:00:10]} 60. Ke3 {[%clk 0:00:11]}  Kb2 {[%clk 0:00:10]} 61. Bc4 {[%clk 0:00:10]}  Ka3 {[%clk 0:00:10]} 62. Kd4 {[%clk 0:00:09]}  Kb4 {[%clk 0:00:11]} 63. Nc3 {[%clk 0:00:08]}  Ka5 {[%clk 0:00:11]} 64. Nd5 {[%clk 0:00:08]}  Ka4 {[%clk 0:00:11]} 65. Kc3 {[%clk 0:00:08]}  Ka5 {[%clk 0:00:10]} 66. Bd3 {[%clk 0:00:08]}  Ka4 {[%clk 0:00:10]} 67. Kc4 {[%clk 0:00:06]}  Ka3 {[%clk 0:00:11]} 68. Kb5 {[%clk 0:00:05]}  Kb2 {[%clk 0:00:11]} 69. Kb4 {[%clk 0:00:05]}  Kc1 {[%clk 0:00:11]} 70. Kc3 {[%clk 0:00:04]}  Kd1 {[%clk 0:00:12]} 71. Nf4 {[%clk 0:00:04]}  Ke1 {[%clk 0:00:12]} 72. Kd4 {[%clk 0:00:05]}  Kf2 {[%clk 0:00:12]} 73. Ke4 {[%clk 0:00:06]}  Kg3 {[%clk 0:00:12]} 74. Kf5 {[%clk 0:00:05]}  Kf3 {[%clk 0:00:12]} 75. Nd5 {[%clk 0:00:06]}  Kf2 {[%clk 0:00:12]} 76. Kf4 {[%clk 0:00:07]}  Kg2 {[%clk 0:00:12]} 77. Nc3 {[%clk 0:00:05]}  Kh3 {[%clk 0:00:12]} 78. Be2 {[%clk 0:00:05]}  Kh4 {[%clk 0:00:13]} 79. Nd5 {[%clk 0:00:04]}  Kh3 {[%clk 0:00:13]} 80. Ne3 {[%clk 0:00:05]}  Kh4 {[%clk 0:00:13]} 81. Bf3 {[%clk 0:00:05]}  Kh3 {[%clk 0:00:13]} 82. Nf5 {[%clk 0:00:05]}  Kh2 {[%clk 0:00:13]} 83. Bg4 {[%clk 0:00:04]}  Kg1 {[%clk 0:00:14]} 84. Ke3 {[%clk 0:00:04]}  Kf1 {[%clk 0:00:14]} 85. Nd4 {[%clk 0:00:04]}  Ke1 {[%clk 0:00:14]} 86. Bf3 {[%clk 0:00:04]}  Kf1 {[%clk 0:00:14]} 87. Kf4 {[%clk 0:00:04]}  Ke1 {[%clk 0:00:14]} 88. Ke3 {[%clk 0:00:04]}  Kf1 {[%clk 0:00:15]} 89. Nc2 {[%clk 0:00:04]}  Kg1 {[%clk 0:00:15]} 90. Ke2 {[%clk 0:00:05]}  Kh2 {[%clk 0:00:14]} 91. Kf2 {[%clk 0:00:05]}  Kh3 {[%clk 0:00:14]} 92. Nd4 {[%clk 0:00:05]}  Kh4 {[%clk 0:00:15]} 93. Ne6 {[%clk 0:00:05]}  Kh3 {[%clk 0:00:15]} 94. Nc5 {[%clk 0:00:04]}  Kh4 {[%clk 0:00:16]} 95. Ne4 {[%clk 0:00:04]}  Kh3 {[%clk 0:00:17]} 96. Ng5+ {[%clk 0:00:02]}  Kh4 {[%clk 0:00:18]} 97. Ne6 {[%clk 0:00:02]}  Kh3 {[%clk 0:00:18]} 98. Be2 {[%clk 0:00:03]}  Kh4 {[%clk 0:00:19]} 99. Kf3 {[%clk 0:00:03]}  Kh3 {[%clk 0:00:19]} 100. Kf4 {[%clk 0:00:03]}  Kh2 {[%clk 0:00:19]} 101. Bf3 {[%clk 0:00:04]}  Kh3 {[%clk 0:00:19]} 102. Ng5+ {[%clk 0:00:05]}  Kh4 {[%clk 0:00:19]} 103. Ne4 {[%clk 0:00:05]}  Kh3 {[%clk 0:00:19]} 1/2-1/2


[Site "https://www.chess.com"]

[Event "Titled Tuesday Blitz July 20 2021"]
[White "Parkhov, Yair"]
[Black "Asadli, Vugar"]
[WhiteFideId "2813408"]
[BlackFideId "13405764"]
[WhiteElo "2131"]
[BlackElo "2386"]
[Result "1/2-1/2"]
[Round "02"]
[TimeControl "180+1"]
[Date "2021.07.20"]
[WhiteClock "0:00:07"]
[BlackClock "0:00:30"]

1. e4 {[%clk 0:03:00]}  g6 {[%clk 0:02:58]} 2. d4 {[%clk 0:03:00]}  Bg7 {[%clk 0:02:58]} 3. Nc3 {[%clk 0:03:01]}  d6 {[%clk 0:02:58]} 4. Be3 {[%clk 0:03:01]}  a6 {[%clk 0:02:58]} 5. Nf3 {[%clk 0:02:48]}  b5 {[%clk 0:02:57]} 6. Bd3 {[%clk 0:02:46]}  Bb7 {[%clk 0:02:56]} 7. a4 {[%clk 0:02:42]}  b4 {[%clk 0:02:56]} 8. Nb1 {[%clk 0:02:42]}  Nd7 {[%clk 0:02:52]} 9. Nbd2 {[%clk 0:02:37]}  Ngf6 {[%clk 0:02:49]} 10. c3 {[%clk 0:02:32]}  c5 {[%clk 0:02:36]} 11. O-O {[%clk 0:02:12]}  O-O {[%clk 0:02:33]} 12. a5 {[%clk 0:02:11]}  Rc8 {[%clk 0:02:17]} 13. h3 {[%clk 0:02:08]}  Qc7 {[%clk 0:02:06]} 14. Qe2 {[%clk 0:01:59]}  Qb8 {[%clk 0:01:59]} 15. Bxa6 {[%clk 0:01:50]}  bxc3 {[%clk 0:01:49]} 16. bxc3 {[%clk 0:01:45]}  Bxa6 {[%clk 0:01:49]} 17. Qxa6 {[%clk 0:01:44]}  Qb2 {[%clk 0:01:48]} 18. Qd3 {[%clk 0:01:30]}  cxd4 {[%clk 0:01:42]} 19. cxd4 {[%clk 0:01:31]}  Rc3 {[%clk 0:01:40]} 20. Qb1 {[%clk 0:01:29]}  Rc2 {[%clk 0:01:28]} 21. Qxb2 {[%clk 0:01:19]}  Rxb2 {[%clk 0:01:28]} 22. Rfb1 {[%clk 0:01:20]}  Rxb1+ {[%clk 0:01:28]} 23. Rxb1 {[%clk 0:01:21]}  Ra8 {[%clk 0:01:28]} 24. Ra1 {[%clk 0:01:15]}  Ne8 {[%clk 0:01:28]} 25. Nb3 {[%clk 0:01:04]}  Nc7 {[%clk 0:01:27]} 26. Rc1 {[%clk 0:01:03]}  Nb5 {[%clk 0:01:25]} 27. d5 {[%clk 0:01:00]}  f5 {[%clk 0:01:21]} 28. exf5 {[%clk 0:00:57]}  gxf5 {[%clk 0:01:22]} 29. Ng5 {[%clk 0:00:35]}  Nc3 {[%clk 0:01:16]} 30. Rc2 {[%clk 0:00:27]}  Nxd5 {[%clk 0:01:16]} 31. Ne6 {[%clk 0:00:27]}  Be5 {[%clk 0:01:06]} 32. Rc1 {[%clk 0:00:13]}  Kf7 {[%clk 0:00:55]} 33. Nc7 {[%clk 0:00:12]}  Nxc7 {[%clk 0:00:53]} 34. Rxc7 {[%clk 0:00:13]}  Nf6 {[%clk 0:00:53]} 35. Ra7 {[%clk 0:00:10]}  Rb8 {[%clk 0:00:51]} 36. Nd2 {[%clk 0:00:06]}  Nd5 {[%clk 0:00:47]} 37. g3 {[%clk 0:00:02]}  Bxg3 {[%clk 0:00:35]} 38. fxg3 {[%clk 0:00:01]}  Nxe3 {[%clk 0:00:36]} 39. a6 {[%clk 0:00:02]}  Rb2 {[%clk 0:00:35]} 40. Nf3 {[%clk 0:00:01]}  Ra2 {[%clk 0:00:34]} 41. Nd4 {[%clk 0:00:02]}  Kf6 {[%clk 0:00:32]} 42. Nc6 {[%clk 0:00:02]}  e5 {[%clk 0:00:25]} 43. Nd8 {[%clk 0:00:03]}  f4 {[%clk 0:00:22]} 44. Rf7+ {[%clk 0:00:03]}  Kg5 {[%clk 0:00:19]} 45. gxf4+ {[%clk 0:00:03]}  exf4 {[%clk 0:00:20]} 46. a7 {[%clk 0:00:04]}  f3 {[%clk 0:00:20]} 47. Ne6+ {[%clk 0:00:04]}  Kg6 {[%clk 0:00:20]} 48. Rxf3 {[%clk 0:00:05]}  Ra1+ {[%clk 0:00:20]} 49. Kh2 {[%clk 0:00:05]}  Nf5 {[%clk 0:00:20]} 50. Nf8+ {[%clk 0:00:05]}  Kg5 {[%clk 0:00:21]} 51. Nxh7+ {[%clk 0:00:05]}  Kg6 {[%clk 0:00:21]} 52. Nf8+ {[%clk 0:00:05]}  Kf6 {[%clk 0:00:22]} 53. Nd7+ {[%clk 0:00:04]}  Ke6 {[%clk 0:00:22]} 54. Nf8+ {[%clk 0:00:05]}  Ke5 {[%clk 0:00:23]} 55. Ng6+ {[%clk 0:00:03]}  Ke6 {[%clk 0:00:23]} 56. Nf8+ {[%clk 0:00:03]}  Kf6 {[%clk 0:00:24]} 57. Nh7+ {[%clk 0:00:03]}  Kg6 {[%clk 0:00:24]} 58. Nf8+ {[%clk 0:00:03]}  Kg5 {[%clk 0:00:25]} 59. Nh7+ {[%clk 0:00:03]}  Kh6 {[%clk 0:00:25]} 60. Rxf5 {[%clk 0:00:02]}  Kxh7 {[%clk 0:00:25]} 61. Rd5 {[%clk 0:00:02]}  Rxa7 {[%clk 0:00:24]} 62. Rxd6 {[%clk 0:00:03]}  Ra3 {[%clk 0:00:25]} 63. Kg2 {[%clk 0:00:03]}  Kg7 {[%clk 0:00:25]} 64. Re6 {[%clk 0:00:03]}  Kf7 {[%clk 0:00:26]} 65. Re2 {[%clk 0:00:04]}  Kf6 {[%clk 0:00:26]} 66. Rf2+ {[%clk 0:00:05]}  Kg5 {[%clk 0:00:27]} 67. Rf3 {[%clk 0:00:06]}  Ra4 {[%clk 0:00:27]} 68. Kg3 {[%clk 0:00:06]}  Rb4 {[%clk 0:00:28]} 69. Rf2 {[%clk 0:00:07]}  Rb3+ {[%clk 0:00:28]} 70. Rf3 {[%clk 0:00:08]}  Rb1 {[%clk 0:00:29]} 71. Re3 {[%clk 0:00:08]}  Rg1+ {[%clk 0:00:28]} 72. Kf2 {[%clk 0:00:09]}  Ra1 {[%clk 0:00:29]} 73. Re4 {[%clk 0:00:08]}  Kf5 {[%clk 0:00:30]} 74. Rd4 {[%clk 0:00:08]}  Ra2+ {[%clk 0:00:29]} 75. Kg3 {[%clk 0:00:07]}  Ra3+ {[%clk 0:00:28]} 76. Kh4 {[%clk 0:00:07]}  Kg6 {[%clk 0:00:28]} 77. Rg4+ {[%clk 0:00:07]}  Kh6 {[%clk 0:00:28]} 78. Rf4 {[%clk 0:00:08]}  Ra6 {[%clk 0:00:27]} 79. Kg4 {[%clk 0:00:08]}  Rb6 {[%clk 0:00:28]} 80. h4 {[%clk 0:00:09]}  Ra6 {[%clk 0:00:28]} 81. h5 {[%clk 0:00:09]}  Rb6 {[%clk 0:00:28]} 82. Rf8 {[%clk 0:00:07]}  Rb4+ {[%clk 0:00:28]} 83. Kf5 {[%clk 0:00:07]}  Rb5+ {[%clk 0:00:29]} 84. Kf6 {[%clk 0:00:07]}  Rb6+ {[%clk 0:00:29]} 85. Kf7 {[%clk 0:00:07]}  Kxh5 {[%clk 0:00:29]} 86. Rh8+ {[%clk 0:00:07]}  Kg5 {[%clk 0:00:29]} 87. Rd8 {[%clk 0:00:07]}  Kf5 {[%clk 0:00:29]} 88. Rd5+ {[%clk 0:00:07]}  Ke4 {[%clk 0:00:30]} 89. Rd7 {[%clk 0:00:07]} 1/2-1/2


[Site "https://www.chess.com"]

[Event "Titled Tuesday Blitz July 20 2021"]
[White "Petriashvili, Nikoloz"]
[Black "Rozhkov, Viacheslav"]
[WhiteFideId "13611216"]
[BlackFideId "4181484"]
[WhiteElo "2769"]
[BlackElo "2483"]
[Result "0-1"]
[Round "02"]
[TimeControl "180+1"]
[Date "2021.07.21"]
[WhiteClock "0:00:01"]
[BlackClock "0:00:12"]

1. e4 {[%clk 0:02:59]}  c5 {[%clk 0:02:58]} 2. Nf3 {[%clk 0:03:00]}  d6 {[%clk 0:02:58]} 3. d4 {[%clk 0:03:00]}  cxd4 {[%clk 0:02:58]} 4. Nxd4 {[%clk 0:03:01]}  Nf6 {[%clk 0:02:58]} 5. Nc3 {[%clk 0:03:01]}  Nc6 {[%clk 0:02:58]} 6. Bg5 {[%clk 0:03:00]}  Bd7 {[%clk 0:02:57]} 7. Qd2 {[%clk 0:02:51]}  Rc8 {[%clk 0:02:57]} 8. O-O-O {[%clk 0:02:48]}  Nxd4 {[%clk 0:02:57]} 9. Qxd4 {[%clk 0:02:48]}  Qa5 {[%clk 0:02:58]} 10. f4 {[%clk 0:02:30]}  Rxc3 {[%clk 0:02:57]} 11. bxc3 {[%clk 0:02:06]}  e5 {[%clk 0:02:56]} 12. Qc4 {[%clk 0:01:47]}  d5 {[%clk 0:02:51]} 13. exd5 {[%clk 0:01:29]}  Ba3+ {[%clk 0:02:51]} 14. Kb1 {[%clk 0:01:29]}  Ne4 {[%clk 0:02:41]} 15. Bd3 {[%clk 0:01:07]}  Nxc3+ {[%clk 0:02:13]} 16. Ka1 {[%clk 0:01:06]}  O-O {[%clk 0:02:05]} 17. fxe5 {[%clk 0:00:54]}  Rc8 {[%clk 0:01:10]} 18. Qh4 {[%clk 0:00:44]}  h6 {[%clk 0:00:59]} 19. e6 {[%clk 0:00:21]}  fxe6 {[%clk 0:00:52]} 20. Bc4 {[%clk 0:00:07]}  hxg5 {[%clk 0:00:46]} 21. Qd4 {[%clk 0:00:03]}  Nxd1 {[%clk 0:00:30]} 22. dxe6 {[%clk 0:00:03]}  Rxc4 {[%clk 0:00:19]} 23. Qxc4 {[%clk 0:00:01]}  Bb2+ {[%clk 0:00:12]} 24. Kb1 {[%clk 0:00:02]}  Bf6 {[%clk 0:00:12]} 25. exd7+ {[%clk 0:00:02]}  Kh8 {[%clk 0:00:11]} 26. d8=Q+ {[%clk 0:00:02]}  Qxd8 {[%clk 0:00:11]} 27. Qd3 {[%clk 0:00:02]}  Qb6+ {[%clk 0:00:11]} 28. Qb3 {[%clk 0:00:03]}  Nc3+ {[%clk 0:00:11]} 29. Kb2 {[%clk 0:00:02]}  Qd4 {[%clk 0:00:12]} 30. Kc1 {[%clk 0:00:01]}  Ne2+ {[%clk 0:00:12]} 31. Kb1 {[%clk 0:00:01]}  Qa1# {[%clk 0:00:12]} 0-1


[Site "https://www.chess.com"]

[Event "Titled Tuesday Blitz July 20 2021"]
[White "Pinheiro, Iung Alicio de O."]
[Black "Todorovic, Bojan"]
[WhiteFideId "2104350"]
[BlackFideId "917087"]
[WhiteElo "2597"]
[BlackElo "2266"]
[Result "1-0"]
[Round "02"]
[TimeControl "180+1"]
[Date "2021.07.21"]
[WhiteClock "0:01:27"]
[BlackClock "0:00:34"]

1. e4 {[%clk 0:03:00]}  e5 {[%clk 0:02:58]} 2. Bc4 {[%clk 0:02:59]}  Nf6 {[%clk 0:02:57]} 3. d3 {[%clk 0:02:59]}  c6 {[%clk 0:02:56]} 4. Nf3 {[%clk 0:02:58]}  Be7 {[%clk 0:02:56]} 5. O-O {[%clk 0:02:53]}  d6 {[%clk 0:02:55]} 6. Nc3 {[%clk 0:02:46]}  O-O {[%clk 0:02:53]} 7. h3 {[%clk 0:02:46]}  Nbd7 {[%clk 0:02:53]} 8. a3 {[%clk 0:02:45]}  b5 {[%clk 0:02:50]} 9. Ba2 {[%clk 0:02:45]}  Nc5 {[%clk 0:02:49]} 10. Ne2 {[%clk 0:02:43]}  Be6 {[%clk 0:02:48]} 11. Ng3 {[%clk 0:02:42]}  Bxa2 {[%clk 0:02:46]} 12. Rxa2 {[%clk 0:02:43]}  g6 {[%clk 0:02:46]} 13. Bh6 {[%clk 0:02:43]}  Re8 {[%clk 0:02:46]} 14. Ra1 {[%clk 0:02:43]}  Ne6 {[%clk 0:02:39]} 15. Qd2 {[%clk 0:02:42]}  Kh8 {[%clk 0:02:32]} 16. Nh2 {[%clk 0:02:36]}  Ng8 {[%clk 0:02:32]} 17. Be3 {[%clk 0:02:35]}  Bg5 {[%clk 0:02:29]} 18. Ne2 {[%clk 0:02:33]}  Bxe3 {[%clk 0:02:06]} 19. Qxe3 {[%clk 0:02:33]}  Qg5 {[%clk 0:02:00]} 20. f4 {[%clk 0:02:29]}  exf4 {[%clk 0:01:59]} 21. Nxf4 {[%clk 0:02:30]}  Nxf4 {[%clk 0:01:59]} 22. Rxf4 {[%clk 0:02:31]}  Re7 {[%clk 0:01:38]} 23. Raf1 {[%clk 0:02:30]}  Qe5 {[%clk 0:01:13]} 24. Rxf7 {[%clk 0:02:10]}  Rxf7 {[%clk 0:01:12]} 25. Rxf7 {[%clk 0:02:11]}  Qxb2 {[%clk 0:01:12]} 26. Nf3 {[%clk 0:02:02]}  h6 {[%clk 0:00:53]} 27. Qf4 {[%clk 0:01:33]}  Qxa3 {[%clk 0:00:38]} 28. Nh4 {[%clk 0:01:27]}  Qa1+ {[%clk 0:00:34]} 29. Kh2 {[%clk 0:01:27]}  Qe5 {[%clk 0:00:34]} 30. Nxg6# {[%clk 0:01:27]} 1-0


[Site "https://www.chess.com"]

[Event "Titled Tuesday Blitz July 20 2021"]
[White "Prraneeth Vuppala"]
[Black "Nathan, Nitish"]
[WhiteFideId "46622373"]
[BlackFideId "30927870"]
[WhiteElo "1759"]
[BlackElo "2222"]
[Result "1-0"]
[Round "02"]
[TimeControl "180+1"]
[Date "2021.07.21"]
[WhiteClock "0:00:50"]
[BlackClock "0:02:16"]

1. e4 {[%clk 0:03:00]}  c5 {[%clk 0:02:59]} 2. Nf3 {[%clk 0:03:00]}  Nc6 {[%clk 0:02:59]} 3. d4 {[%clk 0:02:59]}  cxd4 {[%clk 0:03:00]} 4. Nxd4 {[%clk 0:03:00]}  e5 {[%clk 0:03:00]} 5. Nb5 {[%clk 0:02:59]}  d6 {[%clk 0:03:00]} 6. N1c3 {[%clk 0:02:54]}  a6 {[%clk 0:02:59]} 7. Na3 {[%clk 0:02:54]}  Be7 {[%clk 0:03:00]} 8. Nd5 {[%clk 0:02:48]}  Nf6 {[%clk 0:02:58]} 9. Nxf6+ {[%clk 0:02:36]}  Bxf6 {[%clk 0:02:57]} 10. Be3 {[%clk 0:02:34]}  O-O {[%clk 0:02:53]} 11. Bc4 {[%clk 0:02:31]}  b5 {[%clk 0:02:51]} 12. Bd5 {[%clk 0:02:31]}  Bb7 {[%clk 0:02:50]} 13. O-O {[%clk 0:02:27]}  Qc7 {[%clk 0:02:49]} 14. c4 {[%clk 0:02:11]}  b4 {[%clk 0:02:47]} 15. Nc2 {[%clk 0:02:08]}  a5 {[%clk 0:02:47]} 16. a3 {[%clk 0:01:37]}  b3 {[%clk 0:02:45]} 17. Ne1 {[%clk 0:01:37]}  a4 {[%clk 0:02:42]} 18. Nd3 {[%clk 0:01:35]}  Ne7 {[%clk 0:02:42]} 19. Rc1 {[%clk 0:01:31]}  Bxd5 {[%clk 0:02:36]} 20. cxd5 {[%clk 0:01:23]}  Qd7 {[%clk 0:02:35]} 21. Qd2 {[%clk 0:01:11]}  Ng6 {[%clk 0:02:34]} 22. Rc6 {[%clk 0:00:59]}  Nh4 {[%clk 0:02:34]} 23. f3 {[%clk 0:00:57]}  Rfc8 {[%clk 0:02:31]} 24. Rfc1 {[%clk 0:00:56]}  Rxc6 {[%clk 0:02:27]} 25. dxc6 {[%clk 0:00:56]}  Qc7 {[%clk 0:02:25]} 26. Nb4 {[%clk 0:00:56]}  Rc8 {[%clk 0:02:22]} 27. Nd5 {[%clk 0:00:56]}  Qd8 {[%clk 0:02:22]} 28. c7 {[%clk 0:00:56]}  Qe8 {[%clk 0:02:19]} 29. Nb6 {[%clk 0:00:52]}  g5 {[%clk 0:02:15]} 30. Nxc8 {[%clk 0:00:51]}  g4 {[%clk 0:02:16]} 31. Nxd6 {[%clk 0:00:50]} 1-0


[Site "https://www.chess.com"]